[Event "Late-Titled-Tuesday-Blitz-September-05-2023"]
[Site "Chess.com"]
[Date "2023.09.05"]
[Round "4"]
[White "arminmusovic"]
[Black "cassoulet"]
[Result "1-0"]
[WhiteElo "2539"]
[BlackElo "2746"]
[TimeControl "180+1"]
[EndTime "14:41:17 PDT"]
[Termination "arminmusovic won by checkmate"]

1. a3 {[%clk 0:03:00.9]} 1... d5 {[%clk 0:02:57.1]} 2. Nc3 {[%clk 0:02:59.2]}
2... d4 {[%clk 0:02:56.4]} 3. Ne4 {[%clk 0:02:59.7]} 3... Bf5 {[%clk 0:02:55.7]}
4. Ng3 {[%clk 0:02:59.8]} 4... Bg6 {[%clk 0:02:56]} 5. f4 {[%clk 0:02:59.9]}
5... e6 {[%clk 0:02:54.6]} 6. Nf3 {[%clk 0:03:00.2]} 6... Nf6 {[%clk 0:02:54.1]}
7. d3 {[%clk 0:03:00.1]} 7... c5 {[%clk 0:02:54]} 8. e4 {[%clk 0:02:58.7]} 8...
dxe3 {[%clk 0:02:53.2]} 9. Bxe3 {[%clk 0:02:59.4]} 9... Nc6 {[%clk 0:02:53.2]}
10. Be2 {[%clk 0:02:58.9]} 10... Nd5 {[%clk 0:02:53.5]} 11. Qd2 {[%clk
0:02:51.6]} 11... Bd6 {[%clk 0:02:49.1]} 12. O-O {[%clk 0:02:48.3]} 12... Qc7
{[%clk 0:02:43.1]} 13. Nh4 {[%clk 0:02:33.7]} 13... Nxe3 {[%clk 0:02:42.9]} 14.
Qxe3 {[%clk 0:02:34.6]} 14... O-O-O {[%clk 0:02:42.6]} 15. c3 {[%clk 0:02:30.4]}
15... Ne7 {[%clk 0:02:36.7]} 16. Bg4 {[%clk 0:02:10.9]} 16... Nd5 {[%clk
0:02:35.4]} 17. Bxe6+ {[%clk 0:01:58.3]} 17... fxe6 {[%clk 0:02:28.6]} 18. Qxe6+
{[%clk 0:01:59.2]} 18... Kb8 {[%clk 0:02:28.5]} 19. Qxd5 {[%clk 0:01:51.1]}
19... Bxf4 {[%clk 0:02:27.4]} 20. Qf3 {[%clk 0:01:51.3]} 20... Bxg3 {[%clk
0:02:18.9]} 21. Qxg3 {[%clk 0:01:52.2]} 21... Qxg3 {[%clk 0:02:03.8]} 22. hxg3
{[%clk 0:01:53.1]} 22... Bxd3 {[%clk 0:02:04]} 23. Rf7 {[%clk 0:01:47.3]} 23...
g6 {[%clk 0:02:03.9]} 24. Re1 {[%clk 0:01:43.7]} 24... Bc4 {[%clk 0:02:04]} 25.
Rf4 {[%clk 0:01:35.3]} 25... Bb5 {[%clk 0:01:59.3]} 26. Nf3 {[%clk 0:01:35.3]}
26... Rhe8 {[%clk 0:01:56.5]} 27. Rxe8 {[%clk 0:01:14.7]} 27... Rxe8 {[%clk
0:01:57.4]} 28. c4 {[%clk 0:01:10.5]} 28... Bc6 {[%clk 0:01:53.3]} 29. Ng5
{[%clk 0:01:07]} 29... h6 {[%clk 0:01:48.4]} 30. Nf7 {[%clk 0:01:05.6]} 30... h5
{[%clk 0:01:39.5]} 31. b4 {[%clk 0:01:01.1]} 31... cxb4 {[%clk 0:01:32]} 32.
axb4 {[%clk 0:01:01.2]} 32... a6 {[%clk 0:01:32.6]} 33. Nd6 {[%clk 0:00:56.4]}
33... Re1+ {[%clk 0:01:30.4]} 34. Rf1 {[%clk 0:00:53.4]} 34... Re3 {[%clk
0:01:25.8]} 35. b5 {[%clk 0:00:46.6]} 35... axb5 {[%clk 0:01:19.7]} 36. cxb5
{[%clk 0:00:47.5]} 36... Kc7 {[%clk 0:00:46.4]} 37. bxc6 {[%clk 0:00:40.5]}
37... Kxd6 {[%clk 0:00:45.9]} 38. cxb7 {[%clk 0:00:37]} 38... Rb3 {[%clk
0:00:42.6]} 39. Rf6+ {[%clk 0:00:27.5]} 39... Ke5 {[%clk 0:00:42.3]} 40. Rxg6
{[%clk 0:00:18.2]} 40... Rxb7 {[%clk 0:00:38.3]} 41. Rg5+ {[%clk 0:00:17.9]}
41... Ke4 {[%clk 0:00:37.5]} 42. Rxh5 {[%clk 0:00:18]} 42... Rg7 {[%clk
0:00:29.6]} 43. Kh2 {[%clk 0:00:17.6]} 43... Ke3 {[%clk 0:00:29.8]} 44. Rh4
{[%clk 0:00:16.7]} 44... Kf2 {[%clk 0:00:29.1]} 45. Rf4+ {[%clk 0:00:16.9]}
45... Ke3 {[%clk 0:00:29.5]} 46. Rf3+ {[%clk 0:00:16.3]} 46... Ke4 {[%clk
0:00:29.4]} 47. Ra3 {[%clk 0:00:15.7]} 47... Rh7+ {[%clk 0:00:29.1]} 48. Kg1
{[%clk 0:00:16.2]} 48... Rb7 {[%clk 0:00:29.7]} 49. Rf3 {[%clk 0:00:11.9]} 49...
Rh7 {[%clk 0:00:28.7]} 50. Rf8 {[%clk 0:00:10.6]} 50... Rh6 {[%clk 0:00:27.9]}
51. Kf2 {[%clk 0:00:10]} 51... Ra6 {[%clk 0:00:27.7]} 52. g4 {[%clk 0:00:10.3]}
52... Ra3 {[%clk 0:00:25.8]} 53. Rf3 {[%clk 0:00:08.5]} 53... Ra1 {[%clk
0:00:22.3]} 54. Kg3 {[%clk 0:00:08.8]} 54... Ke5 {[%clk 0:00:22.8]} 55. g5
{[%clk 0:00:08.5]} 55... Ra4 {[%clk 0:00:22]} 56. Kh3 {[%clk 0:00:07]} 56... Ke6
{[%clk 0:00:21.7]} 57. g4 {[%clk 0:00:05.6]} 57... Ra1 {[%clk 0:00:20.8]} 58.
Kh4 {[%clk 0:00:04.6]} 58... Rh1+ {[%clk 0:00:20.7]} 59. Kg3 {[%clk 0:00:05.3]}
59... Ke7 {[%clk 0:00:19.4]} 60. Rf6 {[%clk 0:00:05.6]} 60... Rg1+ {[%clk
0:00:18.4]} 61. Kf4 {[%clk 0:00:06.3]} 61... Rf1+ {[%clk 0:00:18.7]} 62. Ke5
{[%clk 0:00:07.1]} 62... Re1+ {[%clk 0:00:19.1]} 63. Kf5 {[%clk 0:00:07.8]}
63... Rf1+ {[%clk 0:00:18.9]} 64. Kg6 {[%clk 0:00:08]} 64... Rg1 {[%clk
0:00:19.5]} 65. Rf4 {[%clk 0:00:08.4]} 65... Rg2 {[%clk 0:00:19.7]} 66. Kh6
{[%clk 0:00:08.6]} 66... Rh2+ {[%clk 0:00:20.1]} 67. Kg7 {[%clk 0:00:09.2]}
67... Ra2 {[%clk 0:00:19.7]} 68. Re4+ {[%clk 0:00:09.7]} 68... Kd6 {[%clk
0:00:19.8]} 69. g6 {[%clk 0:00:10.4]} 69... Ra7+ {[%clk 0:00:19.5]} 70. Kh6
{[%clk 0:00:10.6]} 70... Kd5 {[%clk 0:00:18.5]} 71. Re1 {[%clk 0:00:10.7]} 71...
Ra4 {[%clk 0:00:17.1]} 72. g5 {[%clk 0:00:08.9]} 72... Rh4+ {[%clk 0:00:15.3]}
73. Kg7 {[%clk 0:00:09.5]} 73... Ra4 {[%clk 0:00:16.1]} 74. Kh7 {[%clk
0:00:09.6]} 74... Ra7+ {[%clk 0:00:16.7]} 75. g7 {[%clk 0:00:10.1]} 75... Rb7
{[%clk 0:00:17.1]} 76. Kh8 {[%clk 0:00:10.3]} 76... Rb4 {[%clk 0:00:17.4]} 77.
g8=Q+ {[%clk 0:00:10.8]} 77... Kd4 {[%clk 0:00:17.6]} 78. Qg7+ {[%clk
0:00:10.6]} 78... Kc4 {[%clk 0:00:17.9]} 79. Re4+ {[%clk 0:00:09.6]} 79... Kb5
{[%clk 0:00:18.8]} 80. Rxb4+ {[%clk 0:00:09.8]} 80... Kxb4 {[%clk 0:00:19.7]}
81. Qc7 {[%clk 0:00:10.1]} 81... Kb5 {[%clk 0:00:20.1]} 82. g6 {[%clk
0:00:10.2]} 82... Ka4 {[%clk 0:00:21]} 83. Qb6 {[%clk 0:00:10.5]} 83... Ka3
{[%clk 0:00:21.2]} 84. Kg7 {[%clk 0:00:11.4]} 84... Ka2 {[%clk 0:00:22.1]} 85.
Kf6 {[%clk 0:00:12.3]} 85... Ka3 {[%clk 0:00:23]} 86. Ke5 {[%clk 0:00:13.2]}
86... Ka2 {[%clk 0:00:23.9]} 87. Kd4 {[%clk 0:00:14.1]} 87... Ka3 {[%clk
0:00:24.8]} 88. Kc3 {[%clk 0:00:15]} 88... Ka2 {[%clk 0:00:25.4]} 89. Qb2#
{[%clk 0:00:15.2]} 1-0

[Event "Late-Titled-Tuesday-Blitz-September-05-2023"]
[Site "Chess.com"]
[Date "2023.09.05"]
[Round "4"]
[White "AquivaRubinstein"]
[Black "KorolDimitriy75"]
[Result "1/2-1/2"]
[WhiteElo "2481"]
[BlackElo "2321"]
[TimeControl "180+1"]
[EndTime "14:41:19 PDT"]
[Termination "Game drawn - insufficient material"]

1. d4 {[%clk 0:03:00.9]} 1... Nf6 {[%clk 0:02:59.6]} 2. c4 {[%clk 0:03:01.1]}
2... c5 {[%clk 0:02:59.9]} 3. d5 {[%clk 0:03:01]} 3... b5 {[%clk 0:03:00.2]} 4.
cxb5 {[%clk 0:03:01.3]} 4... a6 {[%clk 0:03:00.6]} 5. b6 {[%clk 0:03:01.8]} 5...
d6 {[%clk 0:03:00.5]} 6. Nc3 {[%clk 0:03:02]} 6... Nbd7 {[%clk 0:03:00.8]} 7. e4
{[%clk 0:03:00.6]} 7... g6 {[%clk 0:03:01.1]} 8. a4 {[%clk 0:02:58.9]} 8... a5
{[%clk 0:03:00.6]} 9. Nf3 {[%clk 0:02:58]} 9... Bg7 {[%clk 0:03:00.6]} 10. Nd2
{[%clk 0:02:56.1]} 10... O-O {[%clk 0:02:57.4]} 11. Be2 {[%clk 0:02:45.5]} 11...
Nxb6 {[%clk 0:02:56.6]} 12. O-O {[%clk 0:02:45.5]} 12... e6 {[%clk 0:02:56.8]}
13. Nc4 {[%clk 0:02:25.5]} 13... exd5 {[%clk 0:02:55.1]} 14. Nxb6 {[%clk
0:02:19.7]} 14... Qxb6 {[%clk 0:02:53.8]} 15. exd5 {[%clk 0:02:20.3]} 15... Re8
{[%clk 0:02:41.6]} 16. Bb5 {[%clk 0:02:20]} 16... Bd7 {[%clk 0:02:30.9]} 17. Bf4
{[%clk 0:02:15.5]} 17... Rad8 {[%clk 0:02:22]} 18. h3 {[%clk 0:02:12.5]} 18...
Ne4 {[%clk 0:02:05.8]} 19. Nxe4 {[%clk 0:01:52.1]} 19... Rxe4 {[%clk 0:01:06.9]}
20. Bg5 {[%clk 0:01:50.6]} 20... f6 {[%clk 0:01:01.4]} 21. Qf3 {[%clk
0:01:37.2]} 21... Re5 {[%clk 0:00:57.4]} 22. Bxf6 {[%clk 0:01:30.2]} 22... Bxf6
{[%clk 0:00:44.1]} 23. Qxf6 {[%clk 0:01:13]} 23... Rf8 {[%clk 0:00:42.6]} 24.
Qh4 {[%clk 0:01:08.8]} 24... Bxb5 {[%clk 0:00:42.7]} 25. axb5 {[%clk 0:01:09]}
25... Qxb5 {[%clk 0:00:43.6]} 26. Rfd1 {[%clk 0:00:58.4]} 26... Qxb2 {[%clk
0:00:39.6]} 27. Rxa5 {[%clk 0:00:53.7]} 27... Ref5 {[%clk 0:00:30.6]} 28. Rf1
{[%clk 0:00:40.4]} 28... Qf6 {[%clk 0:00:16.5]} 29. Qg3 {[%clk 0:00:30.5]} 29...
Rxd5 {[%clk 0:00:15.4]} 30. Ra7 {[%clk 0:00:25.5]} 30... Rf5 {[%clk 0:00:13.8]}
31. f3 {[%clk 0:00:21.7]} 31... Qe5 {[%clk 0:00:13.2]} 32. Qh4 {[%clk
0:00:18.7]} 32... R5f7 {[%clk 0:00:12.9]} 33. Rxf7 {[%clk 0:00:17]} 33... Rxf7
{[%clk 0:00:13.6]} 34. Rd1 {[%clk 0:00:16.4]} 34... d5 {[%clk 0:00:12.3]} 35.
Qd8+ {[%clk 0:00:16.1]} 35... Kg7 {[%clk 0:00:12.3]} 36. Rxd5 {[%clk 0:00:15.3]}
36... Qe3+ {[%clk 0:00:10.9]} 37. Kh1 {[%clk 0:00:14.8]} 37... Qc1+ {[%clk
0:00:10]} 38. Rd1 {[%clk 0:00:14.8]} 38... Qe3 {[%clk 0:00:08.6]} 39. Qd5 {[%clk
0:00:14.1]} 39... h5 {[%clk 0:00:07.6]} 40. Rd3 {[%clk 0:00:13.9]} 40... Qe1+
{[%clk 0:00:06.7]} 41. Kh2 {[%clk 0:00:14.5]} 41... Qe7 {[%clk 0:00:06.5]} 42.
Rc3 {[%clk 0:00:11.1]} 42... Rf5 {[%clk 0:00:06.5]} 43. Qe4 {[%clk 0:00:10.5]}
43... Qxe4 {[%clk 0:00:05.7]} 44. fxe4 {[%clk 0:00:10.9]} 44... Re5 {[%clk
0:00:06.1]} 45. Rc4 {[%clk 0:00:11.3]} 45... g5 {[%clk 0:00:05.9]} 46. Kg3
{[%clk 0:00:11.6]} 46... Kf6 {[%clk 0:00:06.1]} 47. Kf3 {[%clk 0:00:12.1]} 47...
Ke6 {[%clk 0:00:06.6]} 48. Ra4 {[%clk 0:00:12.4]} 48... Kd6 {[%clk 0:00:05.6]}
49. Ra6+ {[%clk 0:00:12.4]} 49... Kc7 {[%clk 0:00:05.9]} 50. Ra4 {[%clk
0:00:10.3]} 50... Kb6 {[%clk 0:00:06.1]} 51. h4 {[%clk 0:00:09.2]} 51... gxh4
{[%clk 0:00:05.8]} 52. Kf4 {[%clk 0:00:09.5]} 52... Re8 {[%clk 0:00:05.4]} 53.
e5 {[%clk 0:00:09.7]} 53... Kb5 {[%clk 0:00:05.5]} 54. Ra1 {[%clk 0:00:08.1]}
54... c4 {[%clk 0:00:04.5]} 55. Kf5 {[%clk 0:00:08.5]} 55... Kb4 {[%clk
0:00:04.5]} 56. Kf6 {[%clk 0:00:09]} 56... Rg8 {[%clk 0:00:03.9]} 57. e6 {[%clk
0:00:08.6]} 57... Rxg2 {[%clk 0:00:03.9]} 58. Re1 {[%clk 0:00:08.6]} 58... Rg8
{[%clk 0:00:03.5]} 59. Kf7 {[%clk 0:00:08.3]} 59... Ra8 {[%clk 0:00:03.5]} 60.
e7 {[%clk 0:00:08.6]} 60... c3 {[%clk 0:00:04]} 61. Rd1 {[%clk 0:00:06]} 61...
Ra7 {[%clk 0:00:02.9]} 62. Kf8 {[%clk 0:00:04.7]} 62... Rxe7 {[%clk 0:00:02.8]}
63. Kxe7 {[%clk 0:00:05.6]} 63... c2 {[%clk 0:00:03.2]} 64. Rh1 {[%clk
0:00:05.6]} 64... Kb3 {[%clk 0:00:03.1]} 65. Kf6 {[%clk 0:00:06.1]} 65... Kb2
{[%clk 0:00:03]} 66. Kg5 {[%clk 0:00:06.4]} 66... h3 {[%clk 0:00:02.6]} 67. Kh4
{[%clk 0:00:06.1]} 67... h2 {[%clk 0:00:02]} 68. Kh3 {[%clk 0:00:06.6]} 68...
c1=Q {[%clk 0:00:02.7]} 69. Rxc1 {[%clk 0:00:06.7]} 69... Kxc1 {[%clk
0:00:03.6]} 70. Kxh2 {[%clk 0:00:07.3]} 70... Kd2 {[%clk 0:00:03.7]} 71. Kh3
{[%clk 0:00:07.9]} 71... Ke3 {[%clk 0:00:04.4]} 72. Kh4 {[%clk 0:00:08.5]} 72...
Kf4 {[%clk 0:00:05.2]} 73. Kxh5 {[%clk 0:00:09.1]} 1/2-1/2

[Event "Late-Titled-Tuesday-Blitz-September-05-2023"]
[Site "Chess.com"]
[Date "2023.09.05"]
[Round "4"]
[White "SalihEke"]
[Black "DeTimmerman"]
[Result "0-1"]
[WhiteElo "2481"]
[BlackElo "2674"]
[TimeControl "180+1"]
[EndTime "14:41:30 PDT"]
[Termination "DeTimmerman won by checkmate"]

1. d4 {[%clk 0:03:00.9]} 1... Nf6 {[%clk 0:02:59.7]} 2. c3 {[%clk 0:03:01.5]}
2... e6 {[%clk 0:03:00.1]} 3. Nf3 {[%clk 0:03:02]} 3... d5 {[%clk 0:03:01]} 4.
Nbd2 {[%clk 0:03:02.4]} 4... Be7 {[%clk 0:03:01.5]} 5. g3 {[%clk 0:03:02.2]}
5... O-O {[%clk 0:03:01.2]} 6. Bg2 {[%clk 0:03:03]} 6... b6 {[%clk 0:03:01.7]}
7. O-O {[%clk 0:03:03.7]} 7... Bb7 {[%clk 0:03:02.2]} 8. b3 {[%clk 0:03:04.2]}
8... Nbd7 {[%clk 0:03:02.6]} 9. Bb2 {[%clk 0:03:04.8]} 9... c5 {[%clk
0:03:03.1]} 10. Rc1 {[%clk 0:02:55.5]} 10... cxd4 {[%clk 0:03:00.7]} 11. cxd4
{[%clk 0:02:54.9]} 11... Rc8 {[%clk 0:03:00.1]} 12. a3 {[%clk 0:02:50.1]} 12...
a5 {[%clk 0:02:58.8]} 13. Ne5 {[%clk 0:02:40.5]} 13... Nxe5 {[%clk 0:02:58.6]}
14. dxe5 {[%clk 0:02:41.4]} 14... Nd7 {[%clk 0:02:58.6]} 15. e4 {[%clk
0:02:39.5]} 15... Ba6 {[%clk 0:02:49.9]} 16. Re1 {[%clk 0:02:37.7]} 16... Nc5
{[%clk 0:02:49.7]} 17. exd5 {[%clk 0:02:36.1]} 17... exd5 {[%clk 0:02:47.7]} 18.
Bd4 {[%clk 0:00:51.3]} 18... Nd3 {[%clk 0:02:39.6]} 19. Rxc8 {[%clk 0:00:51.2]}
19... Qxc8 {[%clk 0:02:40.5]} 20. Re3 {[%clk 0:00:50]} 20... Bxa3 {[%clk
0:02:14.2]} 21. Bf1 {[%clk 0:00:43.3]} 21... Bb4 {[%clk 0:01:22.6]} 22. Bxd3
{[%clk 0:00:38.5]} 22... Bxd3 {[%clk 0:01:11.8]} 23. Rxd3 {[%clk 0:00:37.7]}
23... b5 {[%clk 0:01:12.7]} 24. Be3 {[%clk 0:00:25.5]} 24... Qf5 {[%clk
0:01:12.4]} 25. Rxd5 {[%clk 0:00:22.6]} 25... Rc8 {[%clk 0:01:08.4]} 26. Qf3
{[%clk 0:00:13.3]} 26... Qh3 {[%clk 0:01:05.1]} 27. Qg2 {[%clk 0:00:06.5]} 27...
Qf5 {[%clk 0:01:02.9]} 28. Nf1 {[%clk 0:00:05.8]} 28... h6 {[%clk 0:00:57.2]}
29. Rxb5 {[%clk 0:00:05.6]} 29... Qd3 {[%clk 0:00:57]} 30. Qd5 {[%clk
0:00:05.5]} 30... Qe2 {[%clk 0:00:38.5]} 31. Rb7 {[%clk 0:00:05.8]} 31... Rf8
{[%clk 0:00:39.4]} 32. e6 {[%clk 0:00:05.5]} 32... fxe6 {[%clk 0:00:39.1]} 33.
Qxe6+ {[%clk 0:00:06]} 33... Kh8 {[%clk 0:00:40]} 34. Qg6 {[%clk 0:00:04.3]}
34... Bc3 {[%clk 0:00:34.6]} 35. Rd7 {[%clk 0:00:04.8]} 35... Qb2 {[%clk
0:00:30.7]} 36. Qd3 {[%clk 0:00:03.8]} 36... Bf6 {[%clk 0:00:26.8]} 37. Rd5
{[%clk 0:00:03]} 37... Ra8 {[%clk 0:00:26.2]} 38. h4 {[%clk 0:00:03.5]} 38...
Qa2 {[%clk 0:00:20.3]} 39. h5 {[%clk 0:00:02.5]} 39... Re8 {[%clk 0:00:19.5]}
40. Rd7 {[%clk 0:00:03.1]} 40... a4 {[%clk 0:00:18.2]} 41. bxa4 {[%clk
0:00:03.3]} 41... Qxa4 {[%clk 0:00:19.1]} 42. Bd4 {[%clk 0:00:03.4]} 42... Qxd7
{[%clk 0:00:18.7]} 43. Qg6 {[%clk 0:00:01.5]} 43... Qxd4 {[%clk 0:00:18.8]} 44.
Qxe8+ {[%clk 0:00:01.9]} 44... Kh7 {[%clk 0:00:19.2]} 45. Qg6+ {[%clk
0:00:02.8]} 45... Kg8 {[%clk 0:00:20.1]} 46. Qe8+ {[%clk 0:00:02.9]} 46... Kh7
{[%clk 0:00:21]} 47. Qe2 {[%clk 0:00:02.7]} 47... Kh8 {[%clk 0:00:21.9]} 48. Kg2
{[%clk 0:00:03]} 48... Qd5+ {[%clk 0:00:21.6]} 49. f3 {[%clk 0:00:02.6]} 49...
Qf7 {[%clk 0:00:19.9]} 50. g4 {[%clk 0:00:02.8]} 50... g6 {[%clk 0:00:18.7]} 51.
hxg6 {[%clk 0:00:03.4]} 51... Qxg6 {[%clk 0:00:19.6]} 52. Ng3 {[%clk 0:00:04.1]}
52... Kh7 {[%clk 0:00:15.7]} 53. Nh5 {[%clk 0:00:04.7]} 53... Bh8 {[%clk
0:00:14.8]} 54. Qe7+ {[%clk 0:00:04.8]} 54... Kg8 {[%clk 0:00:15.3]} 55. Qd8+
{[%clk 0:00:04.8]} 55... Kh7 {[%clk 0:00:15.4]} 56. Qd7+ {[%clk 0:00:05.2]}
56... Kg8 {[%clk 0:00:15.9]} 57. Qd2 {[%clk 0:00:05.2]} 57... Be5 {[%clk
0:00:11.2]} 58. Qe2 {[%clk 0:00:04.4]} 58... Qd6 {[%clk 0:00:10.5]} 59. Kh3
{[%clk 0:00:04.1]} 59... Kf7 {[%clk 0:00:10.7]} 60. Qe4 {[%clk 0:00:04]} 60...
Kg8 {[%clk 0:00:09.9]} 61. Qf5 {[%clk 0:00:03.4]} 61... Qd4 {[%clk 0:00:06.6]}
62. Qe6+ {[%clk 0:00:03.2]} 62... Kf8 {[%clk 0:00:05.7]} 63. Qxh6+ {[%clk
0:00:03.5]} 63... Ke7 {[%clk 0:00:06.3]} 64. Qh7+ {[%clk 0:00:03.7]} 64... Ke6
{[%clk 0:00:06.7]} 65. Qf5+ {[%clk 0:00:04.3]} 65... Kd6 {[%clk 0:00:07.3]} 66.
Qg6+ {[%clk 0:00:03]} 66... Kc7 {[%clk 0:00:07.3]} 67. Qf7+ {[%clk 0:00:03.4]}
67... Kd6 {[%clk 0:00:07.5]} 68. g5 {[%clk 0:00:02.9]} 68... Qg1 {[%clk
0:00:07.5]} 69. Qg6+ {[%clk 0:00:02.9]} 69... Kd5 {[%clk 0:00:07.5]} 70. Qe4+
{[%clk 0:00:02.2]} 70... Kd6 {[%clk 0:00:08]} 71. Qg6+ {[%clk 0:00:02.6]} 71...
Kc7 {[%clk 0:00:08.2]} 72. Qf7+ {[%clk 0:00:02.7]} 72... Kc6 {[%clk 0:00:08.2]}
73. Qe6+ {[%clk 0:00:03.1]} 73... Bd6 {[%clk 0:00:08.4]} 74. Nf6 {[%clk
0:00:03.2]} 74... Qg3# {[%clk 0:00:08]} 0-1

[Event "Late-Titled-Tuesday-Blitz-September-05-2023"]
[Site "Chess.com"]
[Date "2023.09.05"]
[Round "4"]
[White "ErikRonka"]
[Black "egnfanclub"]
[Result "1-0"]
[WhiteElo "2493"]
[BlackElo "2317"]
[TimeControl "180+1"]
[EndTime "14:41:34 PDT"]
[Termination "ErikRonka won on time"]

1. e4 {[%clk 0:03:00.9]} 1... e5 {[%clk 0:02:54.8]} 2. Nf3 {[%clk 0:03:01]} 2...
Nc6 {[%clk 0:02:54.6]} 3. Nc3 {[%clk 0:03:00.7]} 3... Nf6 {[%clk 0:02:54.4]} 4.
d4 {[%clk 0:03:01]} 4... exd4 {[%clk 0:02:54.6]} 5. Nxd4 {[%clk 0:03:01.9]} 5...
Bb4 {[%clk 0:02:54.4]} 6. Nxc6 {[%clk 0:03:01.4]} 6... bxc6 {[%clk 0:02:55.3]}
7. Bd3 {[%clk 0:03:01.4]} 7... d5 {[%clk 0:02:54.6]} 8. exd5 {[%clk 0:03:02.3]}
8... cxd5 {[%clk 0:02:54.4]} 9. O-O {[%clk 0:03:02.9]} 9... O-O {[%clk
0:02:54.1]} 10. h3 {[%clk 0:03:03.5]} 10... Bxc3 {[%clk 0:02:44.1]} 11. bxc3
{[%clk 0:03:03.1]} 11... Re8 {[%clk 0:02:43.4]} 12. Qf3 {[%clk 0:03:02.6]} 12...
h6 {[%clk 0:02:40.9]} 13. Bf4 {[%clk 0:02:54.1]} 13... c6 {[%clk 0:02:41]} 14.
Rab1 {[%clk 0:02:44.4]} 14... Ne4 {[%clk 0:02:37.8]} 15. c4 {[%clk 0:02:41.5]}
15... Qf6 {[%clk 0:02:25.2]} 16. cxd5 {[%clk 0:02:37.8]} 16... cxd5 {[%clk
0:02:25.8]} 17. Rfe1 {[%clk 0:02:04.7]} 17... Bf5 {[%clk 0:02:18.9]} 18. Be3
{[%clk 0:01:55.4]} 18... Bg6 {[%clk 0:01:49.7]} 19. Bb5 {[%clk 0:01:19.5]} 19...
Rec8 {[%clk 0:01:39.2]} 20. Qxf6 {[%clk 0:01:12.6]} 20... Nxf6 {[%clk
0:01:40.1]} 21. Bd3 {[%clk 0:01:06.4]} 21... Bxd3 {[%clk 0:01:35.4]} 22. cxd3
{[%clk 0:01:07.3]} 22... Rc3 {[%clk 0:01:35.6]} 23. Red1 {[%clk 0:01:05]} 23...
Ra3 {[%clk 0:01:34]} 24. Rb2 {[%clk 0:01:02.6]} 24... Rc8 {[%clk 0:01:32]} 25.
Bd4 {[%clk 0:01:02.4]} 25... Nd7 {[%clk 0:01:25.3]} 26. Kf1 {[%clk 0:00:58.3]}
26... f6 {[%clk 0:01:19.8]} 27. Ke2 {[%clk 0:00:55.5]} 27... Kf7 {[%clk
0:01:17.9]} 28. Kd2 {[%clk 0:00:51.8]} 28... Ke6 {[%clk 0:01:13.8]} 29. f4
{[%clk 0:00:48]} 29... Kd6 {[%clk 0:01:12.4]} 30. g4 {[%clk 0:00:31.2]} 30...
Nc5 {[%clk 0:01:12.7]} 31. Bxc5+ {[%clk 0:00:31.2]} 31... Rxc5 {[%clk
0:01:13.6]} 32. Re1 {[%clk 0:00:28.3]} 32... Rca5 {[%clk 0:01:09]} 33. Ra1
{[%clk 0:00:27.8]} 33... R5a4 {[%clk 0:01:03]} 34. Ke3 {[%clk 0:00:27.4]} 34...
Rc3 {[%clk 0:00:56.2]} 35. Rab1 {[%clk 0:00:25.9]} 35... Raa3 {[%clk 0:00:51.1]}
36. Rd2 {[%clk 0:00:25.6]} 36... g5 {[%clk 0:00:50]} 37. fxg5 {[%clk 0:00:25.2]}
37... hxg5 {[%clk 0:00:49.2]} 38. Rb8 {[%clk 0:00:25.8]} 38... Ra4 {[%clk
0:00:43.2]} 39. Rf8 {[%clk 0:00:22.5]} 39... Rf4 {[%clk 0:00:42.7]} 40. Ra8
{[%clk 0:00:21.6]} 40... Ra3 {[%clk 0:00:42.3]} 41. Rd8+ {[%clk 0:00:19.2]}
41... Ke6 {[%clk 0:00:41.7]} 42. Re8+ {[%clk 0:00:19]} 42... Kd7 {[%clk
0:00:41.8]} 43. Ra8 {[%clk 0:00:18.6]} 43... f5 {[%clk 0:00:33.5]} 44. gxf5
{[%clk 0:00:18.1]} 44... Rxf5 {[%clk 0:00:34.4]} 45. Rb2 {[%clk 0:00:18.1]}
45... a5 {[%clk 0:00:23.9]} 46. Rg8 {[%clk 0:00:16.5]} 46... Ra4 {[%clk
0:00:19.5]} 47. Rg6 {[%clk 0:00:16.2]} 47... Raf4 {[%clk 0:00:16.1]} 48. Rb7+
{[%clk 0:00:14.6]} 48... Kc8 {[%clk 0:00:15.3]} 49. Rbg7 {[%clk 0:00:13.7]}
49... Rf3+ {[%clk 0:00:14.5]} 50. Kd4 {[%clk 0:00:12.8]} 50... Rxh3 {[%clk
0:00:13.6]} 51. Rxg5 {[%clk 0:00:11.1]} 51... Rf4+ {[%clk 0:00:10]} 52. Kc5
{[%clk 0:00:10.3]} 52... Rxd3 {[%clk 0:00:08.9]} 53. Rh5 {[%clk 0:00:09.7]}
53... Rf8 {[%clk 0:00:08.6]} 54. Rxd5 {[%clk 0:00:08.4]} 54... Rxd5+ {[%clk
0:00:08.5]} 55. Kxd5 {[%clk 0:00:09.3]} 55... Rf2 {[%clk 0:00:08.9]} 56. a4
{[%clk 0:00:08.4]} 56... Rf4 {[%clk 0:00:08.4]} 57. Kc6 {[%clk 0:00:08.1]} 57...
Kd8 {[%clk 0:00:07.5]} 58. Kb5 {[%clk 0:00:07.8]} 58... Rf5+ {[%clk 0:00:06.6]}
59. Kb6 {[%clk 0:00:08.2]} 59... Rf4 {[%clk 0:00:05.6]} 60. Kxa5 {[%clk
0:00:07.6]} 60... Rf5+ {[%clk 0:00:06]} 61. Kb6 {[%clk 0:00:07.4]} 61... Kc8
{[%clk 0:00:06.9]} 62. Rg8+ {[%clk 0:00:06.4]} 62... Kd7 {[%clk 0:00:06.6]} 63.
a5 {[%clk 0:00:07]} 63... Rf6+ {[%clk 0:00:05.7]} 64. Kb7 {[%clk 0:00:07.1]}
64... Rf1 {[%clk 0:00:05.3]} 65. Rg3 {[%clk 0:00:06.5]} 65... Rb1+ {[%clk
0:00:05.2]} 66. Ka7 {[%clk 0:00:07]} 66... Kc7 {[%clk 0:00:05.2]} 67. Rc3+
{[%clk 0:00:07.4]} 67... Kd8 {[%clk 0:00:04.8]} 68. a6 {[%clk 0:00:08.3]} 68...
Rb2 {[%clk 0:00:04]} 69. Ka8 {[%clk 0:00:08]} 69... Kd7 {[%clk 0:00:04.2]} 70.
a7 {[%clk 0:00:08]} 70... Kd8 {[%clk 0:00:04.4]} 71. Rc6 {[%clk 0:00:07.7]}
71... Kd7 {[%clk 0:00:04.3]} 72. Rh6 {[%clk 0:00:08.1]} 72... Kc7 {[%clk
0:00:02.5]} 73. Rh7+ {[%clk 0:00:08.2]} 73... Kc6 {[%clk 0:00:02]} 74. Rh8
{[%clk 0:00:08.1]} 74... Rg2 {[%clk 0:00:01.9]} 75. Rc8+ {[%clk 0:00:06.5]}
75... Kb6 {[%clk 0:00:01.1]} 76. Kb8 {[%clk 0:00:05.3]} 1-0